Workbook

Sheet Sheet1
A1: JVC
A2: JP MORGAN
A3: DSDP
A4: DPR
A5: FIRS
A6: RA
A7: NPDC
A8: MCA GAS
A9: MCA CRUDE
A10: REMARKS | B10: CUSTOMER | C10: B/L DATE | D10: DUE DATE | E10: VESSEL | F10: CRUDE TYPE | G10: PRODUCER | H10: AGR | I10: INVOICE NO. | J10: QTY IN BBLS | K10: UNIT PRICE | L10: SALES VALUE IN US$ | M10: BUDGETED VALUE | N10: DATE PAID | O10: AMOUNT PAID US$ | P10: VARIANCE IN Payment
A11: DPR | B11: Customer1 | C11: 2020-02-19 | D11: =C11+30 -> 2020-03-20 | E11: TONEGAWA | F11: OKWUIBOME | G11: SEEPCO | H11: PSC | I11: DPR/ROY/02/003/2020 | J11: 500000 | K11: 3.1662 | L11: =J11*K11 -> 1583100 | M11: =J11*60 -> 30000000 | N11: 2020-03-16 | O11: 12664800 | P11: =L110 -> 0
A12: DPR | B12: Customer2 | C12: 2020-02-19 | D12: 2020-03-20 | E12: DELTA MARINER | F12: BB | G12: AENR | H12: SC | I12: DPR/ROY/02/005/2020 | J12: 102460 | K12: 2.6851 | L12: 275115.346 | M12: 6147600 | N12: 2020-03-20 | O12: 2200922.768 | P12: =L111 -> 0
A13: DPR | B13: Customer3 | C13: 2020-02-27 | D13: 2020-03-28 | E13: FRONT BRAGE | F13: AMB | G13: TEPNG | H13: JV | I13: DPR/ROY/02/004/2020 | J13: 169292.5 | K13: 1.84955 | L13: 313114.9434 | M13: 10157550 | N13: 2020-03-28 | O13: 2504919.547 | P13: 0
A14: DSDP | B14: Customer4 | C14: 2020-02-07 | D14: 2020-05-07 | E14: SCF ALTAI | F14: USAN | G14: ESSO | H14: JV | I14: COS/02/COMD/DSDP/015/2020 | J14: 2492380 | K14: 2.79135 | L14: 6957104.913 | M14: 149542800 | N14: 2020-05-07 | O14: 55656839.3 | P14: 0
A15: DSDP | B15: Customer5 | C15: 2020-02-09 | D15: 2020-05-09 | E15: ATHENS SPIRIT | F15: BB | G15: SPDC | H15: JV | I15: COS/02/COMD/DSDP/022/2020 - A | J15: 1623120 | K15: 2.85535 | L15: 4634575.692 | M15: 97387200 | N15: 2020-05-09 | O15: 37076605.54 | P15: 0
A16: DSDP | B16: Customer6 | C16: 2020-02-12 | D16: 2020-05-09 | E16: ATHENS SPIRIT | F16: BB | G16: SPDC | H16: JV | I16: COS/02/COMD/DSDP/022/2020 - B | J16: 748420 | K16: 2.9767 | L16: 2227821.814 | M16: 44905200 | N16: 2020-05-09 | O16: 17822574.51 | P16: 0
A17: DSDP | B17: Customer7 | C17: 2020-02-14 | D17: 2020-05-14 | E17: MARE PICENUM | F17: BONGA | G17: SNEPCO | H17: JV | I17: COS/02/COMD/DSDP/014/2020 | J17: 2294167.5 | K17: 3.0472 | L17: 6990787.206 | M17: 137650050 | N17: 2020-05-14 | O17: 55926297.65 | P17: 0
A18: DSDP | B18: Customer8 | C18: 2020-02-16 | D18: 2020-03-17 | E18: FRONT CROWN | F18: QIL | G18: MPN | H18: JV | I18: COS/02/COMD/DSDP/016/2020 - A | J18: 1383300 | K18: 3.0527 | L18: 4222799.91 | M18: 82998000 | N18: 2020-03-17 | O18: 33782399.28 | P18: 0
A19: DSDP | B19: Customer9 | C19: 2020-02-16 | D19: 2020-03-17 | E19: FRONT CROWN | F19: QIL | G19: MPN | H19: JV | I19: COS/02/COMD/DSDP/016/2020 - B | J19: 994052.5 | K19: 3.0527 | L19: 3034544.067 | M19: 59643150 | N19: 2020-03-17 | O19: 24276352.53 | P19: 0
A20: DSDP | B20: Customer10 | C20: 2020-02-17 | D20: 2020-03-18 | E20: LONDON SPIRIT | F20: AMB | G20: TEPNG | H20: JV | I20: COS/02/COMD/DSDP/020/2020 | J20: 2370197.5 | K20: 2.78385 | L20: 6598274.31 | M20: 142211850 | N20: 2020-03-18 | O20: 52786194.48 | P20: 0
A21: DSDP | B21: Customer11 | C21: 2020-02-19 | D21: 2020-05-19 | E21: AQUITAINE | F21: BL | G21: SPDC | H21: JV | I21: COS/02/COMD/DSDP/017/2020 | J21: 2492420 | K21: 2.9747 | L21: 7414201.774 | M21: 149545200 | N21: 2020-05-19 | O21: 59313614.19 | P21: 0
A22: DSDP | B22: Customer12 | C22: 2020-02-20 | D22: 2020-05-20 | E22: RELIABLE WARRIOR | F22: QIL | G22: MPN | H22: JV | I22: COS/02/COMD/DSDP/018/2020 | J22: 2375580 | K22: 2.8977 | L22: 6883718.166 | M22: 142534800 | N22: 2020-05-20 | O22: 55069745.33 | P22: 0
A23: DSDP | B23: Customer13 | C23: 2020-02-22 | D23: 2020-05-22 | E23: MARLIN SHANGHAI | F23: ESL | G23: CNL | H23: JV | I23: COS/02/COMD/DSDP/019/2020 | J23: 2373225 | K23: 2.6672 | L23: 6329865.72 | M23: 142393500 | N23: 2020-05-22 | O23: 50638925.76 | P23: 0
A24: DSDP | B24: Customer14 | C24: 2020-02-28 | D24: 2020-05-28 | E24: JAG LAKSHYA | F24: QIL | G24: MPN | H24: JV | I24: COS/02/COMD/DSDP/021/2020 | J24: 2374627.5 | K24: 1.8074 | L24: 4291901.744 | M24: 142477650 | N24: 2020-05-28 | O24: 34335213.95 | P24: 0
A25: DSDP | B25: Customer15 | C25: 2020-02-29 | D25: 2020-05-29 | E25: SANTA MARINA | F25: ESL | G25: CNL | H25: JV | I25: COS/02/COMD/DSDP/023/2020 | J25: 2372785 | K25: 1.8274 | L25: 4336027.309 | M25: 142367100 | N25: 2020-05-29 | O25: 34688218.47 | P25: 0
A26: RA | B26: Customer16 | C26: 2020-02-04 | D26: 2020-03-05 | E26: NORDIC MOON | F26: BL | G26: SPDC | H26: JV | I26: NNPC/SPDC/SANTO/02/001/2020 | J26: 1910000 | K26: 2.9576 | L26: 5649016 | M26: 114600000 | N26: 2020-03-05 | O26: 45192128 | P26: 0
A27: RA | B27: Customer17 | C27: 2020-02-13 | D27: 2020-03-14 | E27: EUROVISION | F27: ESL | G27: CNL | H27: JV | I27: NNPC/CNL/CHTA/02/001/2020 | J27: 2373122.5 | K27: 2.9212 | L27: 6932365.447 | M27: 142387350 | N27: 2020-03-14 | O27: 55458923.58 | P27: 0
A28: RA | B28: Customer18 | C28: 2020-02-10 | D28: 2020-03-11 | E28: RIVER SHINER | F28: ESL CONDENSATE | G28: CNL | I28: NNPC/CNL/FALCON/02/004/2020 | J28: 130881.995 | K28: 20.5515 | L28: 2689821.32 | N28: 2020-03-11 | O28: 21518570.56 | P28: 0
A29: MCA GAS | B29: Customer19 | C29: 2020-02-29 | D29: =C29+30 -> 2020-03-30 | E29: PIPELINE | F29: FEEDSTOCK | G29: SPDC | H29: JV | I29: 1800023691 | J29: 0 | K29: 0 | N29: =M29+30 -> 1900-01-30 | O29: 2400000 | P29: 0
A30: MCA GAS | B30: Customer20 | C30: 2020-02-29 | D30: =C30+30 -> 2020-03-30 | E30: PIPELINE | F30: FEEDSTOCK | G30: TEPNG | H30: JV | I30: 150018036 | J30: 0 | K30: 0 | N30: =M30+30 -> 1900-01-30 | O30: 2000000 | P30: 0
A31: feedstock | B31: Customer21 | C31: 2020-02-29 | D31: =C31+30 -> 2020-03-30 | E31: PIPELINE | F31: FEEDSTOCK | G31: SPDC | H31: JV | I31: 1800023691 | J31: =(62635777.98*0.55)*2.5 -> 86124194.72 | K31: 0.075999455 | L31: =J31*K31-802056.43*0.55 -> 6104260.825 | N31: =M31+30 -> 1900-01-30 | O31: 51922003.85 | P31: 0
A32: feedstock | B32: Customer22 | C32: 2020-02-29 | D32: =C32+30 -> 2020-03-30 | E32: PIPELINE | F32: FEEDSTOCK | G32: TEPNG | H32: JV | I32: 150018036 | J32: 25498356.83 | K32: 0.08337456 | L32: =J32*K32 -> 2125914.281 | N32: =M32+30 -> 1900-01-30 | O32: 17007314.25 | P32: 0
A33: FIRS | B33: Customer23 | C33: 2020-02-09 | D33: =C33+30 -> 2020-03-10 | E33: MARLIN SOMERSET | F33: BONGA | G33: SNEPCO | H33: PSC | I33: FIRS/DSDP-Ex/02/006/2020 | J33: 2256477.5 | K33: 3.0507 | L33: 6883835.909 | M33: =J33*60 -> 135388650 | N33: =M33+30 -> 135388680 | O33: 55070687.27 | P33: 0
A34: FIRS | B34: Customer24 | C34: 2020-02-19 | D34: 2020-03-20 | E34: DELTA MARINER | F34: BB | G34: ADDAX | H34: PSC | I34: FIRS/02/006/2020 | J34: 1012500 | K34: 2.6851 | L34: 2718663.75 | M34: 60750000 | N34: 2020-03-20 | O34: 21749310 | P34: 0
A35: FIRS | B35: Customer25 | C35: 2020-02-19 | D35: 2020-03-20 | E35: DELTA MARINER | F35: BB | G35: AENR | H35: SC | I35: FIRS/02/007/2020 | J35: 147540 | K35: 2.6851 | L35: 396159.654 | M35: 8852400 | N35: 2020-03-20 | O35: 3169277.232 | P35: 0
A36: FIRS | B36: Customer26 | C36: 2020-02-19 | D36: 2020-05-19 | E36: KARVOUSNIS | F36: AGBAMI | G36: STARDEEP | H36: PSC | I36: FIRS/DSDP/02/004/2020 | J36: 2434430 | K36: 2.8687 | L36: 6983649.341 | M36: 146065800 | N36: 2020-05-19 | O36: 55869194.73 | P36: 0
A37: FIRS | B37: Customer27 | C37: 2020-02-20 | D37: =C37+30 -> 2020-03-21 | E37: FRONT CORAL | F37: ERHA | G37: ESSO | H37: PSC | I37: FIRS/DSDP-Ex/02/007/2020 | J37: 2373115 | K37: 2.9002 | L37: 6882508.123 | M37: 142386900 | N37: =M37+30 -> 142386930 | O37: 55060064.98 | P37: 0
A38: FIRS | B38: Customer28 | C38: 2020-02-22 | D38: =C38+30 -> 2020-03-23 | E38: LEONID LOZA | F38: EGINA | G38: TUPIN | H38: PSC | I38: FIRS/DSDP-Ex/02/009/2020 | J38: 2491417.5 | K38: 2.89645 | L38: 7216266.218 | M38: 149485050 | N38: =M38+30 -> 149485080 | O38: 57730129.74 | P38: 0
A39: FIRS | B39: Customer29 | C39: 2020-02-25 | D39: =C39+30 -> 2020-03-26 | E39: BASTIA | F39: BONGA | G39: SNEPCO | H39: PSC | I39: FIRS/DSDP-Ex/02/008/2020 | J39: 2491467.5 | K39: 2.314 | L39: 5765255.795 | M39: 149488050 | N39: =M39+30 -> 149488080 | O39: 46122046.36 | P39: 0
A40: GAS | B40: Customer30 | C40: 2020-02-02 | D40: 2020-03-03 | E40: NAVIGATOR TAURUS | F40: BUTANE | G40: MPN | H40: JV | I40: GS/02/NGCL/001/2020 | J40: 17500 | K40: 19.05 | L40: 333375 | M40: 306.9 | N40: 2020-03-03 | O40: 2667000 | P40: 0
A41: JP MORGAN | B41: Customer31 | C41: 2020-02-15 | D41: 2020-03-16 | E41: TONEGAWA | F41: OKWUIBOME | G41: SEEPCO | H41: PSC | I41: COS/02/009/2020 | J41: 250000 | K41: 3.1662 | L41: 791550 | M41: =J41*60 -> 15000000 | N41: 2020-03-16 | O41: 6332400 | P41: 0
A42: JP MORGAN | B42: Customer32 | C42: 2020-02-16 | D42: 2020-03-17 | E42: CHEROKEE | F42: ANTAN | G42: ADDAX | H42: PSC | I42: COS/02/010/2020 | J42: 2368822.5 | K42: 3.1212 | L42: 7393568.787 | M42: 142129350 | N42: 2020-03-17 | O42: 59148550.3 | P42: 0
A43: JVC | B43: Customer33 | C43: 2020-02-04 | D43: 2020-03-05 | E43: NORDIC MOON | F43: BL | G43: SPDC | H43: JV | I43: COS/02/008/2020 - SPDC | J43: 455825 | K43: 2.9576 | L43: 1348148.02 | M43: 27349500 | N43: 2020-03-05 | O43: 10785184.16 | P43: 0
A44: JVC | B44: Customer34 | C44: 2020-02-21 | D44: 2020-03-22 | E44: RIO GTRANDE | F44: BL | G44: TEPNG | H44: JV | I44: COS/02/017/2020 - TEPNG | J44: 358750 | K44: 2.81445 | L44: 1009683.938 | M44: 21525000 | N44: 2020-03-22 | O44: 8077471.5 | P44: 0
A45: JVC | B45: Customer35 | C45: 2020-02-21 | D45: 2020-03-22 | E45: RIO GTRANDE | F45: BL | G45: SPDC | H45: JV | I45: COS/02/016/2020 - SPDC | J45: 22500 | K45: 2.81445 | L45: 63325.125 | M45: 1350000 | N45: 2020-03-22 | O45: 506601 | P45: 0
A46: JVC | B46: Customer36 | C46: 2020-02-27 | D46: 2020-03-28 | E46: FRONT BRAGE | F46: AMB | G46: TEPNG | H46: JV | I46: COS/02/020/2020 -TEPNG | J46: 4157.5 | K46: 1.84955 | L46: 7689.504125 | M46: 249450 | N46: 2020-03-28 | O46: 61516.033 | P46: 0
A47: JVC | B47: Customer37 | C47: 2020-02-09 | D47: 2020-03-10 | E47: MORVIKEN | F47: QIL | G47: MPN | H47: JV | I47: COS/02/011/2020 - MPN | J47: 1692600 | K47: 2.82125 | L47: 4775247.75 | M47: 101556000 | N47: 2020-03-10 | O47: 38201982 | P47: 0
A48: JVC | B48: Customer38 | C48: 2020-02-09 | D48: 2020-03-10 | E48: MORVIKEN | F48: QIL | G48: MPN | H48: JV | I48: COS/02/012/2020 - MPN | J48: 65200 | K48: 2.82125 | L48: 183945.5 | M48: 3912000 | N48: 2020-03-10 | O48: 1471564 | P48: 0
A49: JVC | B49: Customer39 | C49: 2020-02-09 | D49: 2020-03-10 | E49: MORVIKEN | F49: QIL | G49: MPN | H49: JV | I49: COS/02/013/2020 - MPN | J49: 556200 | K49: 2.82125 | L49: 1569179.25 | M49: 33372000 | N49: 2020-03-10 | O49: 12553434 | P49: 0
A50: JVC | B50: Customer40 | C50: 2020-02-19 | D50: 2020-03-20 | E50: DELTA MARINER | F50: BB | G50: SEPLAT | H50: JV | I50: COS/02/022/2020 - SEPLAT | J50: 122320 | K50: 2.6851 | L50: 328441.432 | M50: 7339200 | N50: 2020-03-20 | O50: 2627531.456 | P50: 0
A51: JVC | B51: Customer41 | C51: 2020-02-21 | D51: 2020-03-22 | E51: RIO GTRANDE | F51: BL | G51: EROTON | H51: JV | I51: COS/02/014/2020 - ERO | J51: 550000 | K51: 2.81445 | L51: 1547947.5 | M51: 33000000 | N51: 2020-03-22 | O51: 12383580 | P51: 0
A52: JVC | B52: Customer42 | C52: 2020-02-21 | D52: 2020-03-22 | E52: RIO GTRANDE | F52: BL | G52: NEW CROSS | H52: JV | I52: COS/02/015/2020 - NPL | J52: 550000 | K52: 2.81445 | L52: 1547947.5 | M52: 33000000 | N52: 2020-03-22 | O52: 12383580 | P52: 0
A53: JVC | B53: Customer43 | C53: 2020-02-21 | D53: 2020-03-22 | E53: RIO GTRANDE | F53: BL | G53: AITEO | H53: JV | I53: COS/02/018/2020 - AIT | J53: 890852.5 | K53: 2.81445 | L53: 2507259.819 | M53: 53451150 | N53: 2020-03-22 | O53: 20058078.55 | P53: 0
A54: MCA CRUDE | B54: Customer44 | C54: 2020-02-09 | D54: 2020-03-10 | E54: MORVIKEN | F54: QIL | G54: MPN | H54: JV | I54: NNPC/MPN-MCA OSO/02/001/2020 | J54: 65000 | K54: 2.82125 | L54: 183381.25 | M54: 3900000 | N54: 2020-03-10 | O54: 1467050
A55: MCA CRUDE | B55: Customer45 | C55: 2020-02-23 | D55: 2020-03-24 | E55: DELTA MARINER | F55: BB | G55: NAOC | H55: JV | I55: NNPC/MCA-NAOC/02/002/2020 | J55: 137500 | K55: 2.6277 | L55: 361308.75 | M55: 8250000 | N55: 2020-03-24 | O55: 2890470
A56: MCA CRUDE | B56: Customer46 | C56: 2020-02-27 | D56: 2020-03-28 | E56: FRONT BRAGE | F56: AMB | G56: TEPNG | H56: JV | I56: NNPC/MCA-TEPNG OFON/02/002/2020 | J56: 1302500 | K56: 1.84955 | L56: 2409038.875 | M56: 78150000 | N56: 2020-03-28 | O56: 19272311
A57: MCA CRUDE | B57: Customer47 | C57: 2020-02-27 | D57: 2020-03-28 | E57: FRONT BRAGE | F57: AMB | G57: TEPNG | H57: JV | I57: NNPC/MCA-TEPNG OFON/02/003/2020 | J57: 150000 | K57: 1.84955 | L57: 277432.5 | M57: 9000000 | N57: 2020-03-28 | O57: 2219460
A58: NPDC | B58: Customer48 | C58: 2020-02-02 | D58: 2020-03-03 | E58: RED | F58: FB | G58: NPDC /ELCREST | H58: INDP | I58: NPDC/OML 40/02/016/2020 | J58: 850000 | K58: 2.89485 | L58: 2460622.5 | M58: 3102873.49 | N58: 2020-03-03 | O58: 19684980
A59: NPDC | B59: Customer49 | C59: 2020-02-02 | D59: 2020-03-03 | E59: RED | F59: FB | G59: NPDC /SEPLAT | H59: INDP | I59: NPDC/OML 4,38,41/02/017/2020 | J59: 948155 | K59: 2.89485 | L59: 2744766.502 | N59: 2020-03-03 | O59: 21958132.01
A60: NPDC | B60: Customer50 | C60: 2020-02-02 | D60: 2020-03-03 | E60: HARMONIC | F60: JCB | G60: NPDC /NECONDE | H60: INDP | I60: NPDC/OML 42/02/022/2020 | J60: 574732.5 | K60: 2.89485 | L60: 1663764.378 | M60: 143251.54 | N60: 2020-03-03 | O60: 13310115.02
A61: NPDC | B61: Customer51 | C61: 2020-02-02 | D61: 2020-03-03 | E61: RED | F61: FB | G61: NPDC /ELCREST | H61: INDP | I61: NPDC/OML 40/02/020/2020-DPR | J61: 250000 | K61: 2.89485 | L61: 723712.5 | N61: 2020-03-03 | O61: 5789700
A62: NPDC | B62: Customer52 | C62: 2020-02-02 | D62: 2020-03-03 | E62: RED | F62: FB | G62: NPDC /SEPLAT | H62: INDP | I62: NPDC/OML 4,38,41/02/021/2020-DPR | J62: 225000 | K62: 2.89485 | L62: 651341.25 | N62: 2020-03-03 | O62: 5210730
A63: NPDC | B63: Customer53 | C63: 2020-02-02 | D63: 2020-03-03 | E63: HARMONIC | F63: JCB | G63: NPDC /NECONDE | H63: INDP | I63: NPDC/OML 42/02/024/2020 - DPR | J63: 725000 | K63: 2.89485 | L63: 2098766.25 | N63: 2020-03-03 | O63: 16790130
A64: NPDC | B64: Customer54 | C64: 2020-02-02 | D64: 2020-03-03 | E64: HARMONIC | F64: JCB | G64: NPDC /NECONDE | H64: INDP | I64: NPDC/OML 42/02/025/2020 - DPR-G&VC | J64: 875000 | K64: 2.89485 | L64: 2532993.75 | N64: 2020-03-03 | O64: 20263950
A65: NPDC | B65: Customer55 | C65: 2020-02-02 | D65: 2020-03-03 | E65: RED | F65: FB | G65: NPDC /ELCREST | H65: INDP | I65: NPDC/OML 40/02/018/2020-FIRS | J65: 50000 | K65: 2.89485 | L65: 144742.5 | N65: 2020-03-03 | O65: 1157940
A66: NPDC | B66: Customer56 | C66: 2020-02-02 | D66: 2020-03-03 | E66: RED | F66: FB | G66: NPDC /SEPLAT | H66: INDP | I66: NPDC/OML 4,38,41/02/019/2020-FIRS | J66: 50000 | K66: 2.89485 | L66: 144742.5 | N66: 2020-03-03 | O66: 1157940
A67: NPDC | B67: Customer57 | C67: 2020-02-02 | D67: 2020-03-03 | E67: HARMONIC | F67: JCB | G67: NPDC /NECONDE | H67: INDP | I67: NPDC/OML 42/02/023/2020 - FIRS | J67: 200000 | K67: 2.89485 | L67: 578970 | N67: 2020-03-03 | O67: 4631760
A68: NPDC | B68: Customer58 | C68: 2020-02-13 | D68: 2020-03-14 | E68: ASTRO PHOENIX | F68: OKONO | G68: NPDC | H68: INDP | I68: NPDC/OML 119/02/032/2020 | J68: 1758520 | K68: 2.9077 | L68: 5113248.604 | N68: 2020-03-14 | O68: 40905988.83
A69: NPDC | B69: Customer59 | C69: 2020-02-13 | D69: 2020-03-14 | E69: ASTRO PHOENIX | F69: OKONO | G69: NPDC | H69: INDP | I69: NPDC/OML 119/02/034/2020-DPR | J69: 416250 | K69: 2.9077 | L69: 1210330.125 | N69: 2020-03-14 | O69: 9682641
A70: NPDC | B70: Customer60 | C70: 2020-02-13 | D70: 2020-03-14 | E70: ASTRO PHOENIX | F70: OKONO | G70: NPDC | H70: INDP | I70: NPDC/OML 119/02/033/2020-FIRS | J70: 75000 | K70: 2.9077 | L70: 218077.5 | N70: 2020-03-14 | O70: 1744620
A71: NPDC | B71: Customer61 | C71: 2020-02-15 | D71: 2020-03-16 | E71: DRCATHLON | F71: FB | G71: NPDC /SEPLAT | H71: INDP | I71: NPDC/OML 4,38,41/02/026/2020 | J71: 573457.5 | K71: 2.89485 | L71: 1660073.444 | N71: 2020-03-16 | O71: 13280587.55
A72: NPDC | B72: Customer62 | C72: 2020-02-15 | D72: 2020-03-16 | E72: DRCATHLON | F72: FB | G72: NPDC /SHORELINE | H72: INDP | I72: NPDC/OML 30/02/027/2020 | J72: 995000 | K72: 2.89485 | L72: 2880375.75 | M72: 19275439.1 | N72: 2020-03-16 | O72: 23043006
A73: NPDC | B73: Customer63 | C73: 2020-02-15 | D73: 2020-03-16 | E73: DRCATHLON | F73: FB | G73: NPDC /ND WESTERN | H73: INDP | I73: NPDC/OML 34/02/028/2020 | J73: 355000 | K73: 2.89485 | L73: 1027671.75 | M73: 7037605.35 | N73: 2020-03-16 | O73: 8221374
A74: NPDC | B74: Customer64 | C74: 2020-02-15 | D74: 2020-03-16 | E74: DECATHLON | F74: FB | G74: NPDC /SEPLAT | H74: INDP | I74: NPDC/OML 4,38,41/02/030/2020-DPR | J74: 250000 | K74: 2.89485 | L74: 723712.5 | N74: 2020-03-16 | O74: 5789700
A75: NPDC | B75: Customer65 | C75: 2020-02-15 | D75: 2020-03-16 | E75: DECATHLON | F75: FB | G75: NPDC /ND WESTERN | H75: INDP | I75: NPDC/OML 34/02/031/2020-DPR | J75: 150000 | K75: 2.89485 | L75: 434227.5 | N75: 2020-03-16 | O75: 3473820
A76: NPDC | B76: Customer66 | C76: 2020-02-15 | D76: 2020-03-16 | E76: DECATHLON | F76: FB | G76: NPDC /SEPLAT | H76: INDP | I76: NPDC/OML 4,38,41/02/029/2020-FIRS | J76: 50000 | K76: 2.89485 | L76: 144742.5 | N76: 2020-03-16 | O76: 1157940
A77: NPDC | B77: Customer67 | C77: 2020-02-23 | D77: 2020-03-24 | E77: DELTA MARINER | F77: BB | G77: NAOC | H77: INDP | I77: NPDC/OML 60-63/02/008/2020 | J77: 88872.5 | K77: 2.6277 | L77: 233530.2683 | N77: 2020-03-24 | O77: 1868242.146
A78: NPDC | B78: Customer68 | C78: 2020-02-23 | D78: 2020-03-24 | E78: DELTA MARINER | F78: BB | G78: NAOC | H78: INDP | I78: NPDC/OML 60-63/02/035/2020 | J78: 368915 | K78: 2.6277 | L78: 969397.9455 | N78: 2020-03-24 | O78: 7755183.564
A79: NPDC | B79: Customer69 | C79: 2020-02-24 | D79: 2020-03-25 | E79: FRONT CHALLENGER | F79: FB | G79: NPDC/SEPLAT | H79: INDP | I79: NPDC/OML 4,38,41/02/036/2020 | J79: 375000 | K79: 3.0727 | L79: 1152262.5 | N79: 2020-03-25 | O79: 9218100
A80: NPDC | B80: Customer70 | C80: 2020-02-24 | D80: 2020-03-25 | E80: FRONT CHALLENGER | F80: FB | G80: NPDC | H80: INDP | I80: NPDC/OML 65/02/037/2020 | J80: 1423242.5 | K80: 3.0727 | L80: 4373197.23 | M80: 5323321.37 | N80: 2020-03-25 | O80: 34985577.84
A81: NPDC | B81: Customer71 | C81: 2020-02-24 | D81: 2020-03-25 | E81: FRONT CHALLENGER | F81: FB | G81: NPDC/FHN | H81: INDP | I81: NPDC/OML 26/02/038/2020 | J81: 100000 | K81: 3.0727 | L81: 307270 | N81: 2020-03-25 | O81: 2458160
A82: NPDC | B82: Customer72 | C82: 2020-02-24 | D82: 2020-03-25 | E82: FRONT CHALLENGER | F82: FB | G82: NPDC/FHN | H82: INDP | I82: NPDC/OML 26/02/040/2020 -DPR | J82: 25000 | K82: 3.0727 | L82: 76817.5 | N82: 2020-03-25 | O82: 614540
A83: NPDC | B83: Customer73 | C83: 2020-02-24 | D83: 2020-03-25 | E83: FRONT CHALLENGER | F83: FB | G83: NPDC | H83: INDP | I83: NPDC/OML 65/02/041/2020 - DPR | J83: 375000 | K83: 3.0727 | L83: 1152262.5 | N83: 2020-03-25 | O83: 9218100
A84: NPDC | B84: Customer74 | C84: 2020-02-24 | D84: 2020-03-25 | E84: FRONT CHALLENGER | F84: FB | G84: NPDC | H84: INDP | I84: NPDC/OML 65/02/039/2020 - FIRS | J84: 75000 | K84: 3.0727 | L84: 230452.5 | N84: 2020-03-25 | O84: 1843620
A85: NPDC | B85: Customer75 | C85: 2020-02-29 | D85: 2020-03-30 | E85: SKS SPEY | F85: FB | G85: NPDC/ELCREST | H85: INDP | I85: NPDC/OML 40/02/042/2020 | J85: 900000 | K85: 1.8239 | L85: 1641510 | M85: 2224127 | N85: 2020-03-30 | O85: 13132080
A86: NPDC | B86: Customer76 | C86: 2020-02-29 | D86: 2020-03-30 | E86: SKS SPEY | F86: FB | G86: NPDC/NECONDE | H86: INDP | I86: NPDC/OML 42/02/043/2020 | J86: 947835 | K86: 1.8239 | L86: 1728756.257 | M86: 1738745.56 | N86: 2020-03-30 | O86: 13830050.05
A87: NPDC | B87: Customer77 | C87: 2020-02-29 | D87: 2020-03-30 | E87: SKS SPEY | F87: FB | G87: NPDC/ELCREST | H87: INDP | I87: NPDC/OML 40/02/044/2020 - DPR | J87: 225000 | K87: 1.8239 | L87: 410377.5 | N87: 2020-03-30 | O87: 3283020
A88: NPDC | B88: Customer78 | C88: 2020-02-29 | D88: 2020-03-30 | E88: SKS SPEY | F88: FB | G88: NPDC/NECONDE | H88: INDP | I88: NPDC/OML 42/02/045/2020 - DPR | J88: 250000 | K88: 1.8239 | L88: 455975 | N88: 2020-03-30 | O88: 3647800
A89: NPDC | B89: Customer79 | C89: 2020-02-29 | D89: 2020-03-30 | E89: SKS SPEY | F89: FB | G89: NPDC/NECONDE | H89: INDP | I89: NPDC/OML 42/02/046/2020 - FIRS | J89: 50000 | K89: 1.8239 | L89: 91195 | N89: 2020-03-30 | O89: 729560
A90: NPDC | B90: Customer80 | C90: 2020-02-29 | D90: =C90+30 -> 2020-03-30 | E90: PIPELINE | F90: FEEDSTOCK | G90: NPDC/NAOC | H90: INDP | I90: 257/02/2020 | J90: =(19531821.39*0.6)*2.5 -> 29297732.09 | K90: 0.07709874 | L90: 2258818.229 | N90: =M90+30 -> 1900-01-30 | O90: 18070545.83
A91: RA | B91: Customer81 | C91: 2020-02-23 | D91: 2020-03-20 | E91: DELTA MARINER | F91: BB | G91: NAOC | H91: JV | I91: COS/02/021/2020 - NAOC - RA | J91: 392500 | K91: 2.6277 | L91: 1031372.25 | M91: =J91*60 -> 23550000 | N91: 2020-03-20 | O91: 8250978
A92: RA | B92: Customer82 | C92: 2020-02-27 | D92: 2020-03-28 | E92: FRONT BRAGE | F92: AMB | G92: TEPNG | H92: JV | I92: COS/02/019/2020 -TEPNG-RA | J92: 745797.5 | K92: 1.84955 | L92: 1379389.766 | M92: =J92*60 -> 44747850 | N92: 2020-03-28 | O92: 11035118.13
A93: Restaurants | B93: BL Dates | C93: Qty | D93: Price | E93: Sales Value
A94: Alpha | B94: =TODAY() -> 2020-04-28 | C94: 1 | D94: 0.7879 | E94: =C94*D94 -> 0.7879
A95: Alpha | B95: 2020-04-28 | C95: 2 | D95: 0.7879 | E95: =C95*D95 -> 1.5758
A96: Beta | B96: 2020-04-28 | C96: 3 | D96: 0.7879 | E96: 2.3637
A97: Alpha | B97: 2020-04-28 | C97: 4 | D97: 0.7879 | E97: 3.1516
A98: Gamma | B98: 2020-04-28 | C98: 5 | D98: 0.7879 | E98: 3.9395
A99: Gamma | B99: 2020-04-28 | C99: 6 | D99: 0.7879 | E99: 4.7274
A100: Beta | B100: 2020-04-28 | C100: 7 | D100: 0.7879 | E100: 5.5153
A101: Alpha | B101: 2020-04-28 | C101: 8 | D101: 0.7879 | E101: 6.3032
A102: jvcc | B102: 2020-04-28 | C102: 9 | D102: 0.7879 | E102: 7.0911
A103: jvcc | B103: 2020-04-28 | C103: 10 | D103: 0.7879 | E103: 7.879
A104: jvcc | B104: 2020-04-28 | C104: 11 | D104: 0.7879 | E104: 8.6669
A105: jvcc | B105: 2020-04-28 | C105: 12 | D105: 0.7879 | E105: 9.4548
A106: jpmorgan | B106: 2020-04-28 | C106: 14 | D106: 0.7879 | E106: 11.0306
A107: jpmorgan | B107: 2020-04-28 | C107: 15 | D107: 0.7879 | E107: 11.8185
A108: jpmorgan | B108: 2020-04-28 | C108: 16 | D108: 0.7879 | E108: 12.6064
A109: Alpha | B109: 2020-04-28 | C109: 1 | D109: 0.7879 | E109: =C109*D109 -> 0.7879
A110: Alpha | B110: 2020-04-28 | C110: 2 | D110: 0.7879 | E110: =C110*D110 -> 1.5758
A111: Beta | B111: 2020-04-28 | C111: 3 | D111: 0.7879 | E111: 2.3637
A112: Alpha | B112: 2020-04-28 | C112: 4 | D112: 0.7879 | E112: 3.1516
A113: Gamma | B113: 2020-04-28 | C113: 5 | D113: 0.7879 | E113: 3.9395
A114: Gamma | B114: 2020-04-28 | C114: 6 | D114: 0.7879 | E114: 4.7274
A115: Beta | B115: 2020-04-28 | C115: 7 | D115: 0.7879 | E115: 5.5153
A116: Alpha | B116: 2020-04-28 | C116: 8 | D116: 0.7879 | E116: 6.3032
A117: jvcc | B117: 2020-04-28 | C117: 9 | D117: 0.7879 | E117: 7.0911
A118: jvcc | B118: 2020-04-28 | C118: 10 | D118: 0.7879 | E118: 7.879
A119: jvcc | B119: 2020-04-28 | C119: 11 | D119: 0.7879 | E119: 8.6669
A120: jvcc | B120: 2020-04-28 | C120: 12 | D120: 0.7879 | E120: 9.4548
A121: jpmorgan | B121: 2020-04-28 | C121: 14 | D121: 0.7879 | E121: 11.0306
A122: jpmorgan | B122: 2020-04-28 | C122: 15 | D122: 0.7879 | E122: 11.8185
A123: jpmorgan | B123: 2020-04-28 | C123: 16 | D123: 0.7879 | E123: 12.6064
A124: MCA | B124: 2020-04-28 | C124: 10 | D124: 0.7879 | E124: =C124*D124 -> 7.879
A125: MCA | B125: 2020-04-28 | C125: 11 | D125: 0.7879 | E125: 8.6669
A126: MCA | B126: 2020-04-28 | C126: 12 | D126: 0.7879 | E126: 9.4548
A127: MCA | B127: 2020-04-28 | C127: 14 | D127: 0.7879 | E127: 11.0306
A128: MCA | B128: 2020-04-28 | C128: 15 | D128: 0.7879 | E128: 11.8185

Sheet Sheet2
A4: REMARKS | B4: CUSTOMER | C4: B/L DATE | D4: DUE DATE | E4: VESSEL | F4: CRUDE TYPE | G4: PRODUCER | H4: AGR | I4: INVOICE NO. | J4: QTY IN BBLS | K4: UNIT PRICE | L4: SALES VALUE IN US$ | M4: BUDGETED VALUE | N4: DATE PAID | O4: AMOUNT PAID US$ | P4: VARIANCE IN Payment
A5: JVC | B5: Customer33 | C5: 2020-02-04 | D5: 2020-03-05 | E5: NORDIC MOON | F5: BL | G5: SPDC | H5: JV | I5: COS/02/008/2020 - SPDC | J5: 455825 | K5: 2.9576 | L5: 1348148.02 | M5: 27349500 | N5: 2020-03-05 | O5: 10785184.16 | P5: 0
A6: JVC | B6: Customer34 | C6: 2020-02-21 | D6: 2020-03-22 | E6: RIO GTRANDE | F6: BL | G6: TEPNG | H6: JV | I6: COS/02/017/2020 - TEPNG | J6: 358750 | K6: 2.81445 | L6: 1009683.938 | M6: 21525000 | N6: 2020-03-22 | O6: 8077471.5 | P6: 0
A7: JVC | B7: Customer35 | C7: 2020-02-21 | D7: 2020-03-22 | E7: RIO GTRANDE | F7: BL | G7: SPDC | H7: JV | I7: COS/02/016/2020 - SPDC | J7: 22500 | K7: 2.81445 | L7: 63325.125 | M7: 1350000 | N7: 2020-03-22 | O7: 506601 | P7: 0
A8: JVC | B8: Customer36 | C8: 2020-02-27 | D8: 2020-03-28 | E8: FRONT BRAGE | F8: AMB | G8: TEPNG | H8: JV | I8: COS/02/020/2020 -TEPNG | J8: 4157.5 | K8: 1.84955 | L8: 7689.504125 | M8: 249450 | N8: 2020-03-28 | O8: 61516.033 | P8: 0
A9: JVC | B9: Customer37 | C9: 2020-02-09 | D9: 2020-03-10 | E9: MORVIKEN | F9: QIL | G9: MPN | H9: JV | I9: COS/02/011/2020 - MPN | J9: 1692600 | K9: 2.82125 | L9: 4775247.75 | M9: 101556000 | N9: 2020-03-10 | O9: 38201982 | P9: 0
A10: JVC | B10: Customer38 | C10: 2020-02-09 | D10: 2020-03-10 | E10: MORVIKEN | F10: QIL | G10: MPN | H10: JV | I10: COS/02/012/2020 - MPN | J10: 65200 | K10: 2.82125 | L10: 183945.5 | M10: 3912000 | N10: 2020-03-10 | O10: 1471564 | P10: 0
A11: JVC | B11: Customer39 | C11: 2020-02-09 | D11: 2020-03-10 | E11: MORVIKEN | F11: QIL | G11: MPN | H11: JV | I11: COS/02/013/2020 - MPN | J11: 556200 | K11: 2.82125 | L11: 1569179.25 | M11: 33372000 | N11: 2020-03-10 | O11: 12553434 | P11: 0
A12: JVC | B12: Customer40 | C12: 2020-02-19 | D12: 2020-03-20 | E12: DELTA MARINER | F12: BB | G12: SEPLAT | H12: JV | I12: COS/02/022/2020 - SEPLAT | J12: 122320 | K12: 2.6851 | L12: 328441.432 | M12: 7339200 | N12: 2020-03-20 | O12: 2627531.456 | P12: 0
A13: JVC | B13: Customer41 | C13: 2020-02-21 | D13: 2020-03-22 | E13: RIO GTRANDE | F13: BL | G13: EROTON | H13: JV | I13: COS/02/014/2020 - ERO | J13: 550000 | K13: 2.81445 | L13: 1547947.5 | M13: 33000000 | N13: 2020-03-22 | O13: 12383580 | P13: 0
A14: JVC | B14: Customer42 | C14: 2020-02-21 | D14: 2020-03-22 | E14: RIO GTRANDE | F14: BL | G14: NEW CROSS | H14: JV | I14: COS/02/015/2020 - NPL | J14: 550000 | K14: 2.81445 | L14: 1547947.5 | M14: 33000000 | N14: 2020-03-22 | O14: 12383580 | P14: 0
A15: JVC | B15: Customer43 | C15: 2020-02-21 | D15: 2020-03-22 | E15: RIO GTRANDE | F15: BL | G15: AITEO | H15: JV | I15: COS/02/018/2020 - AIT | J15: 890852.5 | K15: 2.81445 | L15: 2507259.819 | M15: 53451150 | N15: 2020-03-22 | O15: 20058078.55 | P15: 0
A16: Total | J16: =SUM(J$3:J15) -> 5268405 | K16: =SUM(K$3:K15) -> 30.02825 | L16: =SUM(L$3:L15) -> 14888815.34 | M16: =SUM(M$3:M15) -> 316104300 | N16: =SUM(N$3:N15) -> 482983 | O16: =SUM(O$3:O15) -> 119110522.7 | P16: =SUM(P$3:P15) -> 0 | Q16: =SUM(Q$3:Q15) -> 0
A19: REMARKS | B19: CUSTOMER | C19: B/L DATE | D19: DUE DATE | E19: VESSEL | F19: CRUDE TYPE | G19: PRODUCER | H19: AGR | I19: INVOICE NO. | J19: QTY IN BBLS | K19: UNIT PRICE | L19: SALES VALUE IN US$ | M19: BUDGETED VALUE | N19: DATE PAID | O19: AMOUNT PAID US$ | P19: VARIANCE IN Payment
A20: JP MORGAN | B20: Customer31 | C20: 2020-02-15 | D20: 2020-03-16 | E20: TONEGAWA | F20: OKWUIBOME | G20: SEEPCO | H20: PSC | I20: COS/02/009/2020 | J20: 250000 | K20: 3.1662 | L20: 791550 | M20: 15000000 | N20: 2020-03-16 | O20: 6332400 | P20: 0
A21: JP MORGAN | B21: Customer32 | C21: 2020-02-16 | D21: 2020-03-17 | E21: CHEROKEE | F21: ANTAN | G21: ADDAX | H21: PSC | I21: COS/02/010/2020 | J21: 2368822.5 | K21: 3.1212 | L21: 7393568.787 | M21: 142129350 | N21: 2020-03-17 | O21: 59148550.3 | P21: 0
A22: Total | J22: =SUM(J$3:J21) -> 13155632.5 | K22: =SUM(K$3:K21) -> 66.3439 | L22: =SUM(L$3:L21) -> 37962749.46 | M22: =SUM(M$3:M21) -> 789337950 | N22: =SUM(N$3:N21) -> 1053779 | O22: =SUM(O$3:O21) -> 303701995.7 | P22: =SUM(P$3:P21) -> 0 | Q22: =SUM(Q$3:Q21) -> 0
A25: REMARKS | B25: CUSTOMER | C25: B/L DATE | D25: DUE DATE | E25: VESSEL | F25: CRUDE TYPE | G25: PRODUCER | H25: AGR | I25: INVOICE NO. | J25: QTY IN BBLS | K25: UNIT PRICE | L25: SALES VALUE IN US$ | M25: BUDGETED VALUE | N25: DATE PAID | O25: AMOUNT PAID US$ | P25: VARIANCE IN Payment
A26: DSDP | B26: Customer4 | C26: 2020-02-07 | D26: 2020-05-07 | E26: SCF ALTAI | F26: USAN | G26: ESSO | H26: JV | I26: COS/02/COMD/DSDP/015/2020 | J26: 2492380 | K26: 2.79135 | L26: 6957104.913 | M26: 149542800 | N26: 2020-05-07 | O26: 55656839.3 | P26: 0
A27: DSDP | B27: Customer5 | C27: 2020-02-09 | D27: 2020-05-09 | E27: ATHENS SPIRIT | F27: BB | G27: SPDC | H27: JV | I27: COS/02/COMD/DSDP/022/2020 - A | J27: 1623120 | K27: 2.85535 | L27: 4634575.692 | M27: 97387200 | N27: 2020-05-09 | O27: 37076605.54 | P27: 0
A28: DSDP | B28: Customer6 | C28: 2020-02-12 | D28: 2020-05-09 | E28: ATHENS SPIRIT | F28: BB | G28: SPDC | H28: JV | I28: COS/02/COMD/DSDP/022/2020 - B | J28: 748420 | K28: 2.9767 | L28: 2227821.814 | M28: 44905200 | N28: 2020-05-09 | O28: 17822574.51 | P28: 0
A29: DSDP | B29: Customer7 | C29: 2020-02-14 | D29: 2020-05-14 | E29: MARE PICENUM | F29: BONGA | G29: SNEPCO | H29: JV | I29: COS/02/COMD/DSDP/014/2020 | J29: 2294167.5 | K29: 3.0472 | L29: 6990787.206 | M29: 137650050 | N29: 2020-05-14 | O29: 55926297.65 | P29: 0
A30: DSDP | B30: Customer8 | C30: 2020-02-16 | D30: 2020-03-17 | E30: FRONT CROWN | F30: QIL | G30: MPN | H30: JV | I30: COS/02/COMD/DSDP/016/2020 - A | J30: 1383300 | K30: 3.0527 | L30: 4222799.91 | M30: 82998000 | N30: 2020-03-17 | O30: 33782399.28 | P30: 0
A31: DSDP | B31: Customer9 | C31: 2020-02-16 | D31: 2020-03-17 | E31: FRONT CROWN | F31: QIL | G31: MPN | H31: JV | I31: COS/02/COMD/DSDP/016/2020 - B | J31: 994052.5 | K31: 3.0527 | L31: 3034544.067 | M31: 59643150 | N31: 2020-03-17 | O31: 24276352.53 | P31: 0
A32: DSDP | B32: Customer10 | C32: 2020-02-17 | D32: 2020-03-18 | E32: LONDON SPIRIT | F32: AMB | G32: TEPNG | H32: JV | I32: COS/02/COMD/DSDP/020/2020 | J32: 2370197.5 | K32: 2.78385 | L32: 6598274.31 | M32: 142211850 | N32: 2020-03-18 | O32: 52786194.48 | P32: 0
A33: DSDP | B33: Customer11 | C33: 2020-02-19 | D33: 2020-05-19 | E33: AQUITAINE | F33: BL | G33: SPDC | H33: JV | I33: COS/02/COMD/DSDP/017/2020 | J33: 2492420 | K33: 2.9747 | L33: 7414201.774 | M33: 149545200 | N33: 2020-05-19 | O33: 59313614.19 | P33: 0
A34: DSDP | B34: Customer12 | C34: 2020-02-20 | D34: 2020-05-20 | E34: RELIABLE WARRIOR | F34: QIL | G34: MPN | H34: JV | I34: COS/02/COMD/DSDP/018/2020 | J34: 2375580 | K34: 2.8977 | L34: 6883718.166 | M34: 142534800 | N34: 2020-05-20 | O34: 55069745.33 | P34: 0
A35: DSDP | B35: Customer13 | C35: 2020-02-22 | D35: 2020-05-22 | E35: MARLIN SHANGHAI | F35: ESL | G35: CNL | H35: JV | I35: COS/02/COMD/DSDP/019/2020 | J35: 2373225 | K35: 2.6672 | L35: 6329865.72 | M35: 142393500 | N35: 2020-05-22 | O35: 50638925.76 | P35: 0
A36: DSDP | B36: Customer14 | C36: 2020-02-28 | D36: 2020-05-28 | E36: JAG LAKSHYA | F36: QIL | G36: MPN | H36: JV | I36: COS/02/COMD/DSDP/021/2020 | J36: 2374627.5 | K36: 1.8074 | L36: 4291901.744 | M36: 142477650 | N36: 2020-05-28 | O36: 34335213.95 | P36: 0
A37: DSDP | B37: Customer15 | C37: 2020-02-29 | D37: 2020-05-29 | E37: SANTA MARINA | F37: ESL | G37: CNL | H37: JV | I37: COS/02/COMD/DSDP/023/2020 | J37: 2372785 | K37: 1.8274 | L37: 4336027.309 | M37: 142367100 | N37: 2020-05-29 | O37: 34688218.47 | P37: 0
A38: Total | J38: =SUM(J$3:J37) -> 50205540 | K38: =SUM(K$3:K37) -> 165.42205 | L38: =SUM(L$3:L37) -> 139847121.5 | M38: =SUM(M$3:M37) -> 3012332400 | N38: =SUM(N$3:N37) -> 2634996 | O38: =SUM(O$3:O37) -> 1118776972 | P38: =SUM(P$3:P37) -> 0 | Q38: =SUM(Q$3:Q37) -> 0
A41: REMARKS | B41: CUSTOMER | C41: B/L DATE | D41: DUE DATE | E41: VESSEL | F41: CRUDE TYPE | G41: PRODUCER | H41: AGR | I41: INVOICE NO. | J41: QTY IN BBLS | K41: UNIT PRICE | L41: SALES VALUE IN US$ | M41: BUDGETED VALUE | N41: DATE PAID | O41: AMOUNT PAID US$ | P41: VARIANCE IN Payment
A42: DPR | B42: Customer1 | C42: 2020-02-19 | D42: =C42+30 -> 2020-03-20 | E42: TONEGAWA | F42: OKWUIBOME | G42: SEEPCO | H42: PSC | I42: DPR/ROY/02/003/2020 | J42: 500000 | K42: 3.1662 | L42: =J42*K42 -> 1583100 | M42: =J42*60 -> 30000000 | N42: 2020-03-16 | O42: 12664800 | P42: =L141 -> 0
A43: DPR | B43: Customer2 | C43: 2020-02-19 | D43: 2020-03-20 | E43: DELTA MARINER | F43: BB | G43: AENR | H43: SC | I43: DPR/ROY/02/005/2020 | J43: 102460 | K43: 2.6851 | L43: 275115.346 | M43: 6147600 | N43: 2020-03-20 | O43: 2200922.768 | P43: =L142 -> 0
A44: DPR | B44: Customer3 | C44: 2020-02-27 | D44: 2020-03-28 | E44: FRONT BRAGE | F44: AMB | G44: TEPNG | H44: JV | I44: DPR/ROY/02/004/2020 | J44: 169292.5 | K44: 1.84955 | L44: 313114.9434 | M44: 10157550 | N44: 2020-03-28 | O44: 2504919.547 | P44: 0
A45: Total | J45: =SUM(J$3:J44) -> 101182832.5 | K45: =SUM(K$3:K44) -> 338.54495 | L45: =SUM(L$3:L44) -> 281865573.4 | M45: =SUM(M$3:M44) -> 6070969950 | N45: =SUM(N$3:N44) -> 5401726 | O45: =SUM(O$3:O44) -> 2254924587 | P45: =SUM(P$3:P44) -> 0 | Q45: =SUM(Q$3:Q44) -> 0
A48: REMARKS | B48: CUSTOMER | C48: B/L DATE | D48: DUE DATE | E48: VESSEL | F48: CRUDE TYPE | G48: PRODUCER | H48: AGR | I48: INVOICE NO. | J48: QTY IN BBLS | K48: UNIT PRICE | L48: SALES VALUE IN US$ | M48: BUDGETED VALUE | N48: DATE PAID | O48: AMOUNT PAID US$ | P48: VARIANCE IN Payment
A49: FIRS | B49: Customer23 | C49: 2020-02-09 | D49: 2020-03-10 | E49: MARLIN SOMERSET | F49: BONGA | G49: SNEPCO | H49: PSC | I49: FIRS/DSDP-Ex/02/006/2020 | J49: 2256477.5 | K49: 3.0507 | L49: 6883835.909 | M49: 135388650 | N49: 135388680 | O49: 55070687.27 | P49: 0
A50: FIRS | B50: Customer24 | C50: 2020-02-19 | D50: 2020-03-20 | E50: DELTA MARINER | F50: BB | G50: ADDAX | H50: PSC | I50: FIRS/02/006/2020 | J50: 1012500 | K50: 2.6851 | L50: 2718663.75 | M50: 60750000 | N50: 2020-03-20 | O50: 21749310 | P50: 0
A51: FIRS | B51: Customer25 | C51: 2020-02-19 | D51: 2020-03-20 | E51: DELTA MARINER | F51: BB | G51: AENR | H51: SC | I51: FIRS/02/007/2020 | J51: 147540 | K51: 2.6851 | L51: 396159.654 | M51: 8852400 | N51: 2020-03-20 | O51: 3169277.232 | P51: 0
A52: FIRS | B52: Customer26 | C52: 2020-02-19 | D52: 2020-05-19 | E52: KARVOUSNIS | F52: AGBAMI | G52: STARDEEP | H52: PSC | I52: FIRS/DSDP/02/004/2020 | J52: 2434430 | K52: 2.8687 | L52: 6983649.341 | M52: 146065800 | N52: 2020-05-19 | O52: 55869194.73 | P52: 0
A53: FIRS | B53: Customer27 | C53: 2020-02-20 | D53: 2020-03-21 | E53: FRONT CORAL | F53: ERHA | G53: ESSO | H53: PSC | I53: FIRS/DSDP-Ex/02/007/2020 | J53: 2373115 | K53: 2.9002 | L53: 6882508.123 | M53: 142386900 | N53: 142386930 | O53: 55060064.98 | P53: 0
A54: FIRS | B54: Customer28 | C54: 2020-02-22 | D54: 2020-03-23 | E54: LEONID LOZA | F54: EGINA | G54: TUPIN | H54: PSC | I54: FIRS/DSDP-Ex/02/009/2020 | J54: 2491417.5 | K54: 2.89645 | L54: 7216266.218 | M54: 149485050 | N54: 149485080 | O54: 57730129.74 | P54: 0
A55: FIRS | B55: Customer29 | C55: 2020-02-25 | D55: 2020-03-26 | E55: BASTIA | F55: BONGA | G55: SNEPCO | H55: PSC | I55: FIRS/DSDP-Ex/02/008/2020 | J55: 2491467.5 | K55: 2.314 | L55: 5765255.795 | M55: 149488050 | N55: 149488080 | O55: 46122046.36 | P55: 0
A56: Total | J56: =SUM(J$3:J55) -> 215572612.5 | K56: =SUM(K$3:K55) -> 696.49015 | L56: =SUM(L$3:L55) -> 600577485.6 | M56: =SUM(M$3:M55) -> 12934356750 | N56: =SUM(N$3:N55) -> 587684012 | O56: =SUM(O$3:O55) -> 4804619884 | P56: =SUM(P$3:P55) -> 0 | Q56: =SUM(Q$3:Q55) -> 0
A59: REMARKS | B59: CUSTOMER | C59: B/L DATE | D59: DUE DATE | E59: VESSEL | F59: CRUDE TYPE | G59: PRODUCER | H59: AGR | I59: INVOICE NO. | J59: QTY IN BBLS | K59: UNIT PRICE | L59: SALES VALUE IN US$ | M59: BUDGETED VALUE | N59: DATE PAID | O59: AMOUNT PAID US$ | P59: VARIANCE IN Payment
A60: RA | B60: Customer16 | C60: 2020-02-04 | D60: 2020-03-05 | E60: NORDIC MOON | F60: BL | G60: SPDC | H60: JV | I60: NNPC/SPDC/SANTO/02/001/2020 | J60: 1910000 | K60: 2.9576 | L60: 5649016 | M60: 114600000 | N60: 2020-03-05 | O60: 45192128 | P60: 0
A61: RA | B61: Customer17 | C61: 2020-02-13 | D61: 2020-03-14 | E61: EUROVISION | F61: ESL | G61: CNL | H61: JV | I61: NNPC/CNL/CHTA/02/001/2020 | J61: 2373122.5 | K61: 2.9212 | L61: 6932365.447 | M61: 142387350 | N61: 2020-03-14 | O61: 55458923.58 | P61: 0
A62: RA | B62: Customer18 | C62: 2020-02-10 | D62: 2020-03-11 | E62: RIVER SHINER | F62: ESL CONDENSATE | G62: CNL | I62: NNPC/CNL/FALCON/02/004/2020 | J62: 130881.995 | K62: 20.5515 | L62: 2689821.32 | N62: 2020-03-11 | O62: 21518570.56 | P62: 0
A63: RA | B63: Customer81 | C63: 2020-02-23 | D63: 2020-03-20 | E63: DELTA MARINER | F63: BB | G63: NAOC | H63: JV | I63: COS/02/021/2020 - NAOC - RA | J63: 392500 | K63: 2.6277 | L63: 1031372.25 | M63: 23550000 | N63: 2020-03-20 | O63: 8250978
A64: RA | B64: Customer82 | C64: 2020-02-27 | D64: 2020-03-28 | E64: FRONT BRAGE | F64: AMB | G64: TEPNG | H64: JV | I64: COS/02/019/2020 -TEPNG-RA | J64: 745797.5 | K64: 1.84955 | L64: 1379389.766 | M64: 44747850 | N64: 2020-03-28 | O64: 11035118.13
A65: Total | J65: =SUM(J$3:J64) -> 436697527 | K65: =SUM(K$3:K64) -> 1423.88785 | L65: =SUM(L$3:L64) -> 1218836936 | M65: =SUM(M$3:M64) -> 26193998700 | N65: =SUM(N$3:N64) -> 1175587552 | O65: =SUM(O$3:O64) -> 9750695487 | P65: =SUM(P$3:P64) -> 0 | Q65: =SUM(Q$3:Q64) -> 0
A68: REMARKS | B68: CUSTOMER | C68: B/L DATE | D68: DUE DATE | E68: VESSEL | F68: CRUDE TYPE | G68: PRODUCER | H68: AGR | I68: INVOICE NO. | J68: QTY IN BBLS | K68: UNIT PRICE | L68: SALES VALUE IN US$ | M68: BUDGETED VALUE | N68: DATE PAID | O68: AMOUNT PAID US$ | P68: VARIANCE IN Payment
A69: NPDC | B69: Customer48 | C69: 2020-02-02 | D69: 2020-03-03 | E69: RED | F69: FB | G69: NPDC /ELCREST | H69: INDP | I69: NPDC/OML 40/02/016/2020 | J69: 850000 | K69: 2.89485 | L69: 2460622.5 | M69: 3102873.49 | N69: 2020-03-03 | O69: 19684980
A70: NPDC | B70: Customer49 | C70: 2020-02-02 | D70: 2020-03-03 | E70: RED | F70: FB | G70: NPDC /SEPLAT | H70: INDP | I70: NPDC/OML 4,38,41/02/017/2020 | J70: 948155 | K70: 2.89485 | L70: 2744766.502 | N70: 2020-03-03 | O70: 21958132.01
A71: NPDC | B71: Customer50 | C71: 2020-02-02 | D71: 2020-03-03 | E71: HARMONIC | F71: JCB | G71: NPDC /NECONDE | H71: INDP | I71: NPDC/OML 42/02/022/2020 | J71: 574732.5 | K71: 2.89485 | L71: 1663764.378 | M71: 143251.54 | N71: 2020-03-03 | O71: 13310115.02
A72: NPDC | B72: Customer51 | C72: 2020-02-02 | D72: 2020-03-03 | E72: RED | F72: FB | G72: NPDC /ELCREST | H72: INDP | I72: NPDC/OML 40/02/020/2020-DPR | J72: 250000 | K72: 2.89485 | L72: 723712.5 | N72: 2020-03-03 | O72: 5789700
A73: NPDC | B73: Customer52 | C73: 2020-02-02 | D73: 2020-03-03 | E73: RED | F73: FB | G73: NPDC /SEPLAT | H73: INDP | I73: NPDC/OML 4,38,41/02/021/2020-DPR | J73: 225000 | K73: 2.89485 | L73: 651341.25 | N73: 2020-03-03 | O73: 5210730
A74: NPDC | B74: Customer53 | C74: 2020-02-02 | D74: 2020-03-03 | E74: HARMONIC | F74: JCB | G74: NPDC /NECONDE | H74: INDP | I74: NPDC/OML 42/02/024/2020 - DPR | J74: 725000 | K74: 2.89485 | L74: 2098766.25 | N74: 2020-03-03 | O74: 16790130
A75: NPDC | B75: Customer54 | C75: 2020-02-02 | D75: 2020-03-03 | E75: HARMONIC | F75: JCB | G75: NPDC /NECONDE | H75: INDP | I75: NPDC/OML 42/02/025/2020 - DPR-G&VC | J75: 875000 | K75: 2.89485 | L75: 2532993.75 | N75: 2020-03-03 | O75: 20263950
A76: NPDC | B76: Customer55 | C76: 2020-02-02 | D76: 2020-03-03 | E76: RED | F76: FB | G76: NPDC /ELCREST | H76: INDP | I76: NPDC/OML 40/02/018/2020-FIRS | J76: 50000 | K76: 2.89485 | L76: 144742.5 | N76: 2020-03-03 | O76: 1157940
A77: NPDC | B77: Customer56 | C77: 2020-02-02 | D77: 2020-03-03 | E77: RED | F77: FB | G77: NPDC /SEPLAT | H77: INDP | I77: NPDC/OML 4,38,41/02/019/2020-FIRS | J77: 50000 | K77: 2.89485 | L77: 144742.5 | N77: 2020-03-03 | O77: 1157940
A78: NPDC | B78: Customer57 | C78: 2020-02-02 | D78: 2020-03-03 | E78: HARMONIC | F78: JCB | G78: NPDC /NECONDE | H78: INDP | I78: NPDC/OML 42/02/023/2020 - FIRS | J78: 200000 | K78: 2.89485 | L78: 578970 | N78: 2020-03-03 | O78: 4631760
A79: NPDC | B79: Customer58 | C79: 2020-02-13 | D79: 2020-03-14 | E79: ASTRO PHOENIX | F79: OKONO | G79: NPDC | H79: INDP | I79: NPDC/OML 119/02/032/2020 | J79: 1758520 | K79: 2.9077 | L79: 5113248.604 | N79: 2020-03-14 | O79: 40905988.83
A80: NPDC | B80: Customer59 | C80: 2020-02-13 | D80: 2020-03-14 | E80: ASTRO PHOENIX | F80: OKONO | G80: NPDC | H80: INDP | I80: NPDC/OML 119/02/034/2020-DPR | J80: 416250 | K80: 2.9077 | L80: 1210330.125 | N80: 2020-03-14 | O80: 9682641
A81: NPDC | B81: Customer60 | C81: 2020-02-13 | D81: 2020-03-14 | E81: ASTRO PHOENIX | F81: OKONO | G81: NPDC | H81: INDP | I81: NPDC/OML 119/02/033/2020-FIRS | J81: 75000 | K81: 2.9077 | L81: 218077.5 | N81: 2020-03-14 | O81: 1744620
A82: NPDC | B82: Customer61 | C82: 2020-02-15 | D82: 2020-03-16 | E82: DRCATHLON | F82: FB | G82: NPDC /SEPLAT | H82: INDP | I82: NPDC/OML 4,38,41/02/026/2020 | J82: 573457.5 | K82: 2.89485 | L82: 1660073.444 | N82: 2020-03-16 | O82: 13280587.55
A83: NPDC | B83: Customer62 | C83: 2020-02-15 | D83: 2020-03-16 | E83: DRCATHLON | F83: FB | G83: NPDC /SHORELINE | H83: INDP | I83: NPDC/OML 30/02/027/2020 | J83: 995000 | K83: 2.89485 | L83: 2880375.75 | M83: 19275439.1 | N83: 2020-03-16 | O83: 23043006
A84: NPDC | B84: Customer63 | C84: 2020-02-15 | D84: 2020-03-16 | E84: DRCATHLON | F84: FB | G84: NPDC /ND WESTERN | H84: INDP | I84: NPDC/OML 34/02/028/2020 | J84: 355000 | K84: 2.89485 | L84: 1027671.75 | M84: 7037605.35 | N84: 2020-03-16 | O84: 8221374
A85: NPDC | B85: Customer64 | C85: 2020-02-15 | D85: 2020-03-16 | E85: DECATHLON | F85: FB | G85: NPDC /SEPLAT | H85: INDP | I85: NPDC/OML 4,38,41/02/030/2020-DPR | J85: 250000 | K85: 2.89485 | L85: 723712.5 | N85: 2020-03-16 | O85: 5789700
A86: NPDC | B86: Customer65 | C86: 2020-02-15 | D86: 2020-03-16 | E86: DECATHLON | F86: FB | G86: NPDC /ND WESTERN | H86: INDP | I86: NPDC/OML 34/02/031/2020-DPR | J86: 150000 | K86: 2.89485 | L86: 434227.5 | N86: 2020-03-16 | O86: 3473820
A87: NPDC | B87: Customer66 | C87: 2020-02-15 | D87: 2020-03-16 | E87: DECATHLON | F87: FB | G87: NPDC /SEPLAT | H87: INDP | I87: NPDC/OML 4,38,41/02/029/2020-FIRS | J87: 50000 | K87: 2.89485 | L87: 144742.5 | N87: 2020-03-16 | O87: 1157940
A88: NPDC | B88: Customer67 | C88: 2020-02-23 | D88: 2020-03-24 | E88: DELTA MARINER | F88: BB | G88: NAOC | H88: INDP | I88: NPDC/OML 60-63/02/008/2020 | J88: 88872.5 | K88: 2.6277 | L88: 233530.2683 | N88: 2020-03-24 | O88: 1868242.146
A89: NPDC | B89: Customer68 | C89: 2020-02-23 | D89: 2020-03-24 | E89: DELTA MARINER | F89: BB | G89: NAOC | H89: INDP | I89: NPDC/OML 60-63/02/035/2020 | J89: 368915 | K89: 2.6277 | L89: 969397.9455 | N89: 2020-03-24 | O89: 7755183.564
A90: NPDC | B90: Customer69 | C90: 2020-02-24 | D90: 2020-03-25 | E90: FRONT CHALLENGER | F90: FB | G90: NPDC/SEPLAT | H90: INDP | I90: NPDC/OML 4,38,41/02/036/2020 | J90: 375000 | K90: 3.0727 | L90: 1152262.5 | N90: 2020-03-25 | O90: 9218100
A91: NPDC | B91: Customer70 | C91: 2020-02-24 | D91: 2020-03-25 | E91: FRONT CHALLENGER | F91: FB | G91: NPDC | H91: INDP | I91: NPDC/OML 65/02/037/2020 | J91: 1423242.5 | K91: 3.0727 | L91: 4373197.23 | M91: 5323321.37 | N91: 2020-03-25 | O91: 34985577.84
A92: NPDC | B92: Customer71 | C92: 2020-02-24 | D92: 2020-03-25 | E92: FRONT CHALLENGER | F92: FB | G92: NPDC/FHN | H92: INDP | I92: NPDC/OML 26/02/038/2020 | J92: 100000 | K92: 3.0727 | L92: 307270 | N92: 2020-03-25 | O92: 2458160
A93: NPDC | B93: Customer72 | C93: 2020-02-24 | D93: 2020-03-25 | E93: FRONT CHALLENGER | F93: FB | G93: NPDC/FHN | H93: INDP | I93: NPDC/OML 26/02/040/2020 -DPR | J93: 25000 | K93: 3.0727 | L93: 76817.5 | N93: 2020-03-25 | O93: 614540
A94: NPDC | B94: Customer73 | C94: 2020-02-24 | D94: 2020-03-25 | E94: FRONT CHALLENGER | F94: FB | G94: NPDC | H94: INDP | I94: NPDC/OML 65/02/041/2020 - DPR | J94: 375000 | K94: 3.0727 | L94: 1152262.5 | N94: 2020-03-25 | O94: 9218100
A95: NPDC | B95: Customer74 | C95: 2020-02-24 | D95: 2020-03-25 | E95: FRONT CHALLENGER | F95: FB | G95: NPDC | H95: INDP | I95: NPDC/OML 65/02/039/2020 - FIRS | J95: 75000 | K95: 3.0727 | L95: 230452.5 | N95: 2020-03-25 | O95: 1843620
A96: NPDC | B96: Customer75 | C96: 2020-02-29 | D96: 2020-03-30 | E96: SKS SPEY | F96: FB | G96: NPDC/ELCREST | H96: INDP | I96: NPDC/OML 40/02/042/2020 | J96: 900000 | K96: 1.8239 | L96: 1641510 | M96: 2224127 | N96: 2020-03-30 | O96: 13132080
A97: NPDC | B97: Customer76 | C97: 2020-02-29 | D97: 2020-03-30 | E97: SKS SPEY | F97: FB | G97: NPDC/NECONDE | H97: INDP | I97: NPDC/OML 42/02/043/2020 | J97: 947835 | K97: 1.8239 | L97: 1728756.257 | M97: 1738745.56 | N97: 2020-03-30 | O97: 13830050.05
A98: NPDC | B98: Customer77 | C98: 2020-02-29 | D98: 2020-03-30 | E98: SKS SPEY | F98: FB | G98: NPDC/ELCREST | H98: INDP | I98: NPDC/OML 40/02/044/2020 - DPR | J98: 225000 | K98: 1.8239 | L98: 410377.5 | N98: 2020-03-30 | O98: 3283020
A99: NPDC | B99: Customer78 | C99: 2020-02-29 | D99: 2020-03-30 | E99: SKS SPEY | F99: FB | G99: NPDC/NECONDE | H99: INDP | I99: NPDC/OML 42/02/045/2020 - DPR | J99: 250000 | K99: 1.8239 | L99: 455975 | N99: 2020-03-30 | O99: 3647800
A100: NPDC | B100: Customer79 | C100: 2020-02-29 | D100: 2020-03-30 | E100: SKS SPEY | F100: FB | G100: NPDC/NECONDE | H100: INDP | I100: NPDC/OML 42/02/046/2020 - FIRS | J100: 50000 | K100: 1.8239 | L100: 91195 | N100: 2020-03-30 | O100: 729560
A101: NPDC | B101: Customer80 | C101: 2020-02-29 | D101: 2020-03-30 | E101: PIPELINE | F101: FEEDSTOCK | G101: NPDC/NAOC | H101: INDP | I101: 257/02/2020 | J101: 29297732.09 | K101: 0.07709874 | L101: 2258818.229 | N101: 1900-01-30 | O101: 18070545.83
A102: Total | J102: =SUM(J$3:J101) -> 917267766.1 | K102: =SUM(K$3:K101) -> 2935.704599 | L102: =SUM(L$3:L101) -> 2479912576 | M102: =SUM(M$3:M101) -> 5.242684276e+10 | N102: =SUM(N$3:N101) -> 2352580130 | O102: =SUM(O$3:O101) -> 1.983930061e+10 | P102: =SUM(P$3:P101) -> 0 | Q102: =SUM(Q$3:Q101) -> 0
A105: REMARKS | B105: CUSTOMER | C105: B/L DATE | D105: DUE DATE | E105: VESSEL | F105: CRUDE TYPE | G105: PRODUCER | H105: AGR | I105: INVOICE NO. | J105: QTY IN BBLS | K105: UNIT PRICE | L105: SALES VALUE IN US$ | M105: BUDGETED VALUE | N105: DATE PAID | O105: AMOUNT PAID US$ | P105: VARIANCE IN Payment
A106: MCA GAS | B106: Customer19 | C106: 2020-02-29 | D106: 2020-03-30 | E106: PIPELINE | F106: FEEDSTOCK | G106: SPDC | H106: JV | I106: 1800023691 | J106: 0 | K106: 0 | N106: 1900-01-30 | O106: 2400000 | P106: 0
A107: MCA GAS | B107: Customer20 | C107: 2020-02-29 | D107: 2020-03-30 | E107: PIPELINE | F107: FEEDSTOCK | G107: TEPNG | H107: JV | I107: 150018036 | J107: 0 | K107: 0 | N107: 1900-01-30 | O107: 2000000 | P107: 0
A108: Total | J108: =SUM(J$3:J107) -> 1834535532 | K108: =SUM(K$3:K107) -> 5871.409197 | L108: =SUM(L$3:L107) -> 4959825152 | M108: =SUM(M$3:M107) -> 1.048536855e+11 | N108: =SUM(N$3:N107) -> 4705160320 | O108: =SUM(O$3:O107) -> 3.968300122e+10 | P108: =SUM(P$3:P107) -> 0 | Q108: =SUM(Q$3:Q107) -> 0
A111: REMARKS | B111: CUSTOMER | C111: B/L DATE | D111: DUE DATE | E111: VESSEL | F111: CRUDE TYPE | G111: PRODUCER | H111: AGR | I111: INVOICE NO. | J111: QTY IN BBLS | K111: UNIT PRICE | L111: SALES VALUE IN US$ | M111: BUDGETED VALUE | N111: DATE PAID | O111: AMOUNT PAID US$ | P111: VARIANCE IN Payment
A112: MCA CRUDE | B112: Customer44 | C112: 2020-02-09 | D112: 2020-03-10 | E112: MORVIKEN | F112: QIL | G112: MPN | H112: JV | I112: NNPC/MPN-MCA OSO/02/001/2020 | J112: 65000 | K112: 2.82125 | L112: 183381.25 | M112: 3900000 | N112: 2020-03-10 | O112: 1467050
A113: MCA CRUDE | B113: Customer45 | C113: 2020-02-23 | D113: 2020-03-24 | E113: DELTA MARINER | F113: BB | G113: NAOC | H113: JV | I113: NNPC/MCA-NAOC/02/002/2020 | J113: 137500 | K113: 2.6277 | L113: 361308.75 | M113: 8250000 | N113: 2020-03-24 | O113: 2890470
A114: MCA CRUDE | B114: Customer46 | C114: 2020-02-27 | D114: 2020-03-28 | E114: FRONT BRAGE | F114: AMB | G114: TEPNG | H114: JV | I114: NNPC/MCA-TEPNG OFON/02/002/2020 | J114: 1302500 | K114: 1.84955 | L114: 2409038.875 | M114: 78150000 | N114: 2020-03-28 | O114: 19272311
A115: MCA CRUDE | B115: Customer47 | C115: 2020-02-27 | D115: 2020-03-28 | E115: FRONT BRAGE | F115: AMB | G115: TEPNG | H115: JV | I115: NNPC/MCA-TEPNG OFON/02/003/2020 | J115: 150000 | K115: 1.84955 | L115: 277432.5 | M115: 9000000 | N115: 2020-03-28 | O115: 2219460
A116: Total | J116: =SUM(J$3:J115) -> 3670726064 | K116: =SUM(K$3:K115) -> 11751.96644 | L116: =SUM(L$3:L115) -> 9922881466 | M116: =SUM(M$3:M115) -> 2.098066711e+11 | N116: =SUM(N$3:N115) -> 9410496290 | O116: =SUM(O$3:O115) -> 7.939185172e+10 | P116: =SUM(P$3:P115) -> 0 | Q116: =SUM(Q$3:Q115) -> 0

Sheet Sheet3
